bitfinex-derivatives/quotes_BNBF0:USTF0_20251203
["timestamp","ask_amount","ask_price","bid_price","bid_amount"]
[1764728424413,0.70096058,887.42,885.67,2.78976706]
[1764728424617,0.70096058,887.41,885.67,2.78976706]
[1764728424917,0.70096058,887.4,885.67,2.78976706]
[1764728425217,0.70096058,887.39,885.67,2.78976706]
[1764728425414,0.70096058,887.38,885.61,2.78976706]
[1764728425612,0.70096058,887.37,885.61,2.78976706]
[1764728425815,0.70096058,887.36,885.61,2.78976706]
[1764728426014,0.70096058,887.35,885.61,2.78976706]
[1764728426213,0.70096058,887.34,885.61,2.78976706]
[1764728426514,0.70096058,887.33,885.61,2.78976706]
[1764728426712,0.70096058,887.32,885.61,2.78976706]
[1764728426918,0.70096058,887.31,885.61,2.78976706]
[1764728427114,0.70096058,887.3,885.61,2.78976706]
[1764728427413,0.70096058,887.29,885.61,2.78976706]
[1764728427614,0.70096058,887.28,885.6,2.78976706]
[1764728427914,0.70096058,887.27,885.6,2.78976706]
[1764728428118,0.70096058,887.26,885.6,2.78976706]
[1764728428317,0.84123759,887.45,885.6,2.78976706]
[1764728428318,0.70096058,887.25,885.6,2.78976706]
[1764728428617,0.70096058,887.24,885.6,2.78976706]
[1764728428817,0.70096058,887.23,885.6,2.78976706]
[1764728429018,0.70096058,887.22,885.6,2.78976706]
[1764728429215,0.70096058,887.21,885.6,2.78976706]
[1764728429519,0.70096058,887.2,885.48,2.78976706]
[1764728429816,0.70096058,887.19,885.48,2.78976706]
[1764728430019,0.70096058,887.18,885.48,2.78976706]
[1764728430315,0.70096058,887.17,885.48,2.78976706]
[1764728430518,0.70096058,887.16,885.49,2.78976706]
[1764728430819,0.70096058,887.15,885.49,2.78976706]
[1764728431019,0.70096058,887.14,885.49,2.78976706]
[1764728431217,0.70096058,887.13,885.49,2.78976706]
[1764728431415,0.70096058,887.12,885.49,2.78976706]
[1764728431615,0.70096058,887.11,885.49,2.78976706]
[1764728431818,0.70096058,887.1,885.49,2.78976706]
[1764728432015,0.70096058,887.09,885.49,2.78976706]
[1764728432216,0.70096058,887.08,885.49,2.78976706]
[1764728432417,0.70096058,887.07,885.49,2.78976706]
[1764728432620,0.70096058,887.06,885.49,2.78976706]
[1764728432819,0.70096058,887.05,885.49,2.78976706]
[1764728433019,0.70096058,887.04,885.49,2.78976706]
[1764728433221,0.84123759,887.33,885.49,2.78976706]
[1764728433521,0.70114504,887.32,885.49,2.78976706]
[1764728433719,0.70114504,887.31,885.49,2.78976706]
[1764728434021,0.70114504,887.3,885.49,2.78976706]
[1764728434218,0.70114504,887.29,885.49,2.78976706]
[1764728434421,0.70114504,887.28,885.49,2.78976706]
[1764728434619,0.70114504,887.27,885.49,2.78976706]
[1764728434823,0.70114504,887.26,885.49,2.78976706]
[1764728435119,0.70114504,887.25,885.49,2.78976706]
[1764728435424,0.70114504,887.24,885.63,2.78976706]
[1764728435623,0.70114504,887.23,885.63,2.78976706]
[1764728435822,0.70114504,887.22,885.64,2.78976706]
[1764728436020,0.19615027,887.59,885.64,2.78976706]
[1764728436221,0.70106613,887.58,885.77,2.78976706]
[1764728436420,0.19615027,887.59,885.77,2.78976706]
[1764728436421,0.70106613,887.57,885.77,2.78976706]
[1764728436619,0.70106613,887.56,885.77,2.78976706]
[1764728436817,0.70106613,887.55,885.77,2.78976706]
[1764728437023,0.70106613,887.54,885.77,2.78976706]
[1764728437222,0.70106613,887.53,885.77,2.78976706]
[1764728437424,0.70106613,887.52,885.77,2.78976706]
[1764728437623,0.70106613,887.51,885.77,2.78976706]
[1764728437824,0.70106613,887.5,885.77,2.78976706]
[1764728438126,0.70106613,887.49,885.77,2.78976706]
[1764728438325,0.70106613,887.48,885.76,2.78976706]
[1764728438625,0.70106613,887.47,885.76,2.78976706]
[1764728438925,0.70106613,887.46,885.76,2.78976706]
[1764728439126,0.70106613,887.45,885.76,2.78976706]
[1764728439327,0.70106613,887.44,885.76,2.78976706]
[1764728439528,0.70106613,887.43,885.76,2.78976706]
[1764728439827,0.70106613,887.43,885.44,3.90004322]
[1764728439828,0.70106613,887.42,885.77,2.78976706]
[1764728440125,0.70106613,887.41,885.77,2.78976706]
[1764728440330,0.70106613,887.4,885.77,2.78976706]
[1764728440529,0.70106613,887.39,885.77,2.78976706]
[1764728440729,0.70106613,887.38,885.77,2.78976706]
[1764728440927,0.70106613,887.37,885.78,2.78976706]
[1764728441130,0.70106613,887.36,885.78,2.78976706]
[1764728441427,0.19615027,887.59,885.78,2.78976706]
[1764728441730,0.70077484,887.58,885.78,2.78976706]
[1764728441928,0.70077484,887.57,885.8,2.78976706]
[1764728442127,0.70077484,887.56,885.8,2.78976706]
[1764728442330,0.70077484,887.55,885.8,2.78976706]
[1764728442531,0.70077484,887.54,885.84,2.78976706]
[1764728442728,0.70077484,887.53,885.84,2.78976706]
[1764728443027,0.70077484,887.52,885.84,2.78976706]
[1764728443230,0.70077484,887.51,885.84,2.78976706]
[1764728443433,0.70077484,887.5,885.84,2.78976706]
[1764728443630,0.70077484,887.49,885.83,2.78976706]
[1764728443829,0.70077484,887.48,885.83,2.78976706]
[1764728444132,0.70077484,887.47,885.83,2.78976706]
[1764728444335,0.70077484,887.46,885.83,2.78976706]
[1764728444528,0.70077484,887.45,885.82,2.78976706]
[1764728444830,0.19615027,887.59,885.82,2.78976706]
[1764728445030,0.70042581,887.58,885.82,2.78976706]
[1764728445230,0.70042581,887.57,885.82,2.78976706]
[1764728445433,0.19615027,887.59,885.82,2.78976706]
[1764728445434,0.70042581,887.56,885.82,2.78976706]
[1764728445631,0.70042581,887.55,885.73,2.78976706]
[1764728445833,0.70042581,887.54,885.73,2.78976706]
[1764728446033,0.70042581,887.53,885.74,2.78976706]
[1764728446234,0.70042581,887.52,885.74,2.78976706]
[1764728446534,0.70042581,887.51,885.74,2.78976706]
[1764728446736,0.70042581,887.5,885.81,2.78976706]
[1764728446937,0.70042581,887.49,885.81,2.78976706]
[1764728447137,0.70042581,887.48,885.81,2.78976706]
[1764728447334,0.70042581,887.47,885.81,2.78976706]
[1764728447638,0.19615027,887.59,885.8,2.78976706]
[1764728447835,0.69999125,887.58,885.8,2.78976706]
[1764728448038,0.69999125,887.57,885.8,2.78976706]
[1764728448339,0.69999125,887.56,885.79,2.78976706]
[1764728448634,0.69999125,887.55,885.79,2.78976706]
[1764728448835,0.69999125,887.54,885.79,2.78976706]
[1764728449039,0.69999125,887.53,885.79,2.78976706]
[1764728449339,0.19615027,887.59,885.79,2.78976706]
[1764728449741,0.19615027,887.59,885.91,2.78976706]
[1764728450440,0.19615027,887.59,885.89,2.78976706]
[1764728451339,0.19615027,887.59,885.9,2.78976706]
[1764728451838,0.19615027,887.59,885.89,2.78976706]
[1764728452342,0.19615027,887.59,885.88,2.78976706]
[1764728453440,0.19615027,887.59,885.87,2.78976706]
[1764728457040,0.19615027,887.59,885.86,2.78976706]
[1764728458142,0.19615027,887.59,885.84,2.78976706]
[1764728458542,0.19615027,887.59,885.85,2.78976706]
[1764728459243,0.84123759,887.98,885.85,2.78976706]
[1764728459445,0.19609721,887.75,885.85,2.78976706]
[1764728459645,0.69672505,887.74,885.89,2.78976706]
[1764728461248,0.69672505,887.74,885.91,2.78976706]
[1764728462150,0.69672505,887.74,885.9,2.78976706]
[1764728463746,0.19609721,887.75,885.91,2.78976706]
[1764728464251,0.19609721,887.75,885.92,2.78976706]
[1764728465052,0.84123759,888.19,885.92,2.78976706]
[1764728465253,0.19606904,887.92,886.06,2.78976706]
[1764728465454,0.69628409,887.91,886.06,2.78976706]
[1764728465947,0.69628409,887.91,886.04,2.78976706]
[1764728467353,0.69628409,887.91,886.05,2.78976706]
[1764728470452,0.69628409,887.91,886.04,2.78976706]
[1764728473165,0.19606904,887.92,886.04,2.78976706]
[1764728473464,0.69610574,887.91,886.04,2.78976706]
[1764728473665,0.19606904,887.92,886.04,2.78976706]
[1764728474461,0.69610914,887.91,886.04,2.78976706]
[1764728474665,0.19606904,887.92,886.04,2.78976706]
[1764728475163,0.69605166,887.91,886.01,2.78976706]
[1764728475362,0.69605166,887.9,886.01,2.78976706]
[1764728475563,0.69605166,887.89,886.01,2.78976706]
[1764728475866,0.69605166,887.88,886.01,2.78976706]
[1764728476061,0.19606904,887.92,886.01,2.78976706]
[1764728476265,0.69615337,887.91,886.02,2.78976706]
[1764728476464,0.69615337,887.9,886.02,2.78976706]
[1764728476763,0.69615337,887.89,886.01,2.78976706]
[1764728476967,0.19606904,887.92,886.01,2.78976706]
[1764728477164,5.86390275,888.23,886.2,2.78976706]
[1764728477467,0.19604032,888.21,886.2,2.78976706]
[1764728477664,0.69598114,888.2,886.2,2.78976706]
[1764728477968,0.69598114,888.2,886.24,2.78976706]
[1764728478364,0.69598114,888.2,886.23,2.78976706]
[1764728479269,0.69598114,888.2,886.21,2.78976706]
[1764728481068,5.86390275,888.23,886.24,2.78976706]
[1764728481268,0.69530138,888.22,886.24,2.78976706]
[1764728481468,0.69530138,888.21,886.24,2.78976706]
[1764728481665,5.86390275,888.23,886.24,2.78976706]
[1764728481965,0.69530138,888.22,886.24,2.78976706]
[1764728482264,0.69530138,888.21,886.24,2.78976706]
[1764728482568,5.86390275,888.23,886.22,2.78976706]
[1764728482768,0.6950971,888.22,886.22,2.78976706]
[1764728482967,0.6950971,888.21,886.22,2.78976706]
[1764728483168,5.86390275,888.23,886.22,2.78976706]
[1764728483468,0.69492051,888.22,886.2,2.78976706]
[1764728483668,5.86390275,888.23,886.2,2.78976706]
[1764728483868,0.69492051,888.22,886.2,2.78976706]
[1764728484068,5.86390275,888.23,886.2,2.78976706]
[1764728484267,0.69476377,888.22,886.2,2.78976706]
[1764728484568,5.86390275,888.23,886.18,2.78976706]
[1764728484769,0.69476377,888.22,886.18,2.78976706]
[1764728485069,5.86390275,888.23,886.18,2.78976706]
[1764728485568,5.86390275,888.23,886.21,2.78976706]
[1764728486564,5.86390275,888.23,886.2,2.78976706]
[1764728487068,5.86390275,888.23,886.19,2.78976706]
[1764728487573,5.86390275,888.23,886.18,2.78976706]
[1764728488071,5.86390275,888.23,886.17,2.78976706]
[1764728489071,5.86390275,888.23,886.15,2.78976706]
[1764728490172,0.69455799,888.22,886.15,2.78976706]
[1764728490372,5.86390275,888.23,886.15,2.78976706]
[1764728490571,0.69455793,888.22,886.15,2.78976706]
[1764728490870,5.86390275,888.23,886.15,2.78976706]
[1764728491072,0.69455793,888.22,886.15,2.78976706]
[1764728491372,5.86390275,888.23,886.17,2.78976706]
[1764728491574,0.69466497,888.22,886.17,2.78976706]
[1764728491768,5.86390275,888.23,886.17,2.78976706]
[1764728492272,5.86390275,888.23,886.19,2.78976706]
[1764728493268,5.86390275,888.23,886.21,2.78976706]
[1764728494372,5.86390275,888.23,886.24,2.78976706]
[1764728494973,5.86390275,888.23,886.25,2.78976706]
[1764728495375,5.86390275,888.23,886.27,2.78976706]
[1764728495974,5.86390275,888.23,886.28,2.78976706]
[1764728496373,5.86390275,888.23,886.29,2.78976706]
[1764728497571,5.86390275,888.23,886.3,2.78976706]
[1764728498474,5.86390275,888.23,886.31,2.78976706]
[1764728499174,5.86390275,888.23,886.3,2.78976706]
[1764728499572,5.86390275,888.23,886.31,2.78976706]
[1764728500675,5.86390275,888.23,886.34,2.78976706]
[1764728501575,5.86390275,888.23,886.36,2.78976706]
[1764728502076,5.86390275,888.23,886.42,2.78976706]
[1764728503276,5.86390275,888.23,886.38,2.78976706]
[1764728503775,5.86390275,888.23,886.37,2.78976706]
[1764728504371,5.86390275,888.23,886.38,2.78976706]
[1764728505173,0.69625232,888.22,886.38,2.78976706]
[1764728505373,0.69625232,888.21,886.33,2.78976706]
[1764728505675,0.69625232,888.2,886.33,2.78976706]
[1764728505870,0.69625232,888.19,886.33,2.78976706]
[1764728506071,0.69625232,888.18,886.33,2.78976706]
[1764728506272,0.69625232,888.17,886.34,2.78976706]
[1764728506474,5.86390275,888.23,886.34,2.78976706]
[1764728506672,0.69642129,888.22,886.34,2.78976706]
[1764728506872,0.69642129,888.21,886.34,2.78976706]
[1764728507088,0.69642129,888.2,886.34,2.78976706]
[1764728507278,0.69642129,888.19,886.31,2.78976706]
[1764728507478,0.69642129,888.18,886.31,2.78976706]
[1764728507777,0.69642129,888.17,886.31,2.78976706]
[1764728507974,0.69642129,888.16,886.31,2.78976706]
[1764728508273,0.69642129,888.15,886.31,2.78976706]
[1764728508477,0.69642129,888.14,886.32,2.78976706]
[1764728508778,0.69642129,888.13,886.32,2.78976706]
[1764728509077,0.69642129,888.12,886.32,2.78976706]
[1764728509274,5.86390275,888.23,886.32,2.78976706]
[1764728509275,0.69642129,888.11,886.32,2.78976706]
[1764728509478,0.69642129,888.1,886.19,2.78976706]
[1764728509679,0.69642129,888.09,886.19,2.78976706]
[1764728509877,0.69642129,888.08,886.19,2.78976706]
[1764728510075,0.69642129,888.07,886.13,2.78976706]
[1764728510280,0.69642129,888.06,886.13,2.78976706]
[1764728510481,0.69642129,888.05,886.14,2.78976706]
[1764728510681,0.69642129,888.04,886.14,2.78976706]
[1764728510882,0.69642129,888.03,886.14,2.78976706]
[1764728511182,0.69642129,888.02,886.13,2.78976706]
[1764728511382,0.69642129,888.01,886.13,2.78976706]
[1764728511582,0.69642129,888.0,886.13,2.78976706]
[1764728511783,0.69642129,887.99,886.13,2.78976706]
[1764728511978,0.69642129,887.98,886.13,2.78976706]
[1764728512277,0.69642129,887.97,886.13,2.78976706]
[1764728512478,0.69642129,887.96,886.13,2.78976706]
[1764728512679,0.69642129,887.95,886.11,2.78976706]
[1764728512879,0.69642129,887.94,886.11,2.78976706]
[1764728513082,0.69642129,887.93,886.11,2.78976706]
[1764728513280,0.69642129,887.92,886.11,2.78976706]
[1764728513482,0.69642129,887.91,886.11,2.78976706]
[1764728513680,0.69642129,887.9,886.11,2.78976706]
[1764728513877,0.69642129,887.89,886.11,2.78976706]
[1764728514085,0.69642129,887.88,886.06,2.78976706]
[1764728514384,0.69642129,887.87,886.06,2.78976706]
[1764728514583,0.69642129,887.86,886.06,2.78976706]
[1764728514781,0.69642129,887.85,886.04,2.78976706]
[1764728514980,0.69642129,887.84,886.04,2.78976706]
[1764728515181,0.69642129,887.83,886.08,2.78976706]
[1764728515380,0.69642129,887.82,886.08,2.78976706]
[1764728515679,0.69642129,887.81,886.08,2.78976706]
[1764728515883,0.69642129,887.8,886.08,2.78976706]
[1764728516080,0.84123759,888.07,886.08,2.78976706]
[1764728516081,0.69642129,887.79,886.08,2.78976706]
[1764728516284,0.69642129,887.78,886.08,2.78976706]
[1764728516488,0.84123759,888.07,886.08,2.78976706]
[1764728516686,0.6976561,888.06,886.08,2.78976706]
[1764728516985,0.6976561,888.05,886.08,2.78976706]
[1764728517186,0.6976561,888.04,886.08,2.78976706]
[1764728517384,0.6976561,888.03,886.08,2.78976706]
[1764728517582,0.6976561,888.02,886.08,2.78976706]
[1764728517781,0.6976561,888.01,886.08,2.78976706]
[1764728517987,0.6976561,888.0,886.08,2.78976706]
[1764728518284,0.6976561,887.99,886.09,2.78976706]
[1764728518485,0.6976561,887.98,886.09,2.78976706]
[1764728518684,0.6976561,887.97,886.09,2.78976706]
[1764728518882,0.6976561,887.96,886.09,2.78976706]
[1764728519082,0.6976561,887.95,886.09,2.78976706]
[1764728519282,0.6976561,887.94,886.09,2.78976706]
[1764728519484,0.6976561,887.93,886.09,2.78976706]
[1764728519686,0.6976561,887.92,886.09,2.78976706]
[1764728519882,0.6976561,887.91,886.09,2.78976706]
[1764728520083,0.6976561,887.9,886.09,2.78976706]
[1764728520287,0.6976561,887.89,886.09,2.78976706]
[1764728520587,0.6976561,887.88,886.01,2.78976706]
[1764728520781,0.6976561,887.87,886.01,2.78976706]
[1764728520986,0.6976561,887.86,886.01,2.78976706]
[1764728521281,0.6976561,887.85,886.01,2.78976706]
[1764728521487,0.6976561,887.84,885.99,2.78976706]
[1764728521787,0.6976561,887.83,885.99,2.78976706]
[1764728522086,0.6976561,887.82,885.96,2.78976706]
[1764728522283,0.6976561,887.81,885.96,2.78976706]
[1764728522481,0.6976561,887.8,885.97,2.78976706]
[1764728522680,0.6976561,887.79,885.97,2.78976706]
[1764728522885,0.6976561,887.78,885.97,2.78976706]
[1764728523086,0.6976561,887.77,885.97,2.78976706]
[1764728523283,0.6976561,887.76,885.97,2.78976706]
[1764728523486,0.6976561,887.75,885.97,2.78976706]
[1764728523684,0.6976561,887.74,885.96,2.78976706]
[1764728523887,0.6976561,887.73,885.96,2.78976706]
[1764728524087,0.6976561,887.72,885.96,2.78976706]
[1764728524387,0.6976561,887.71,885.96,2.78976706]
[1764728524587,0.6976561,887.7,885.96,2.78976706]
[1764728524788,0.6976561,887.69,885.96,2.78976706]
[1764728524988,0.6976561,887.68,885.86,2.78976706]
[1764728525188,0.6976561,887.67,885.86,2.78976706]
[1764728525389,0.6976561,887.66,885.84,2.78976706]
[1764728525584,0.6976561,887.65,885.84,2.78976706]
[1764728525788,0.6976561,887.64,885.84,2.78976706]
[1764728525985,0.6976561,887.63,885.84,2.78976706]
[1764728526288,0.6976561,887.62,885.84,2.78976706]
[1764728526487,0.6976561,887.61,885.82,2.78976706]
[1764728526686,0.6976561,887.6,885.82,2.78976706]
[1764728526887,0.6976561,887.59,885.82,2.78976706]
[1764728527088,0.84123759,887.87,885.82,2.78976706]
[1764728527292,0.69710859,887.86,885.82,2.78976706]
[1764728527493,0.69710859,887.85,885.83,2.78976706]
[1764728527691,0.69710859,887.84,885.83,2.78976706]
[1764728527888,0.69710859,887.83,885.83,2.78976706]
[1764728528087,0.69710859,887.82,885.88,2.78976706]
[1764728528291,0.69710859,887.81,885.88,2.78976706]
[1764728528489,0.69710859,887.8,885.84,2.78976706]
[1764728528692,0.69710859,887.79,885.84,2.78976706]
[1764728528994,0.69710859,887.78,885.82,2.78976706]
[1764728529195,0.69710859,887.77,885.82,2.78976706]
[1764728529490,0.69710859,887.76,885.81,2.78976706]
[1764728529791,0.69710859,887.75,885.81,2.78976706]
[1764728529990,0.84123759,887.93,885.81,2.78976706]
[1764728529991,0.69710859,887.74,885.81,2.78976706]
[1764728530193,5.86390275,888.23,885.81,2.78976706]
[1764728530194,0.69710859,887.73,885.81,2.78976706]
[1764728530392,0.69710859,887.72,885.81,2.78976706]
[1764728530595,0.69710859,887.71,885.79,2.78976706]
[1764728530892,0.69710859,887.7,885.79,2.78976706]
[1764728531198,0.69710859,887.69,885.77,2.78976706]
[1764728531391,0.69710859,887.68,885.77,2.78976706]
[1764728531591,0.69710859,887.67,885.77,2.78976706]
[1764728531794,0.84123759,887.95,885.77,2.78976706]
[1764728531991,0.69636567,887.94,885.77,2.78976706]
[1764728532196,0.69636567,887.93,885.76,2.78976706]
[1764728532397,0.69636567,887.92,885.76,2.78976706]
[1764728532594,0.69636567,887.91,885.76,2.78976706]
[1764728532798,0.69636567,887.9,885.76,2.78976706]
[1764728533097,0.69636567,887.89,885.76,2.78976706]
[1764728533393,0.69636567,887.88,885.74,2.78976706]
[1764728533698,0.69636567,887.87,885.73,2.78976706]
[1764728533997,0.69636567,887.86,885.73,2.78976706]
[1764728534197,0.69636567,887.85,885.73,2.78976706]
[1764728534393,0.69636567,887.84,885.71,2.78976706]
[1764728534595,0.69636567,887.83,885.71,2.78976706]
[1764728534793,0.84123759,887.8,885.56,2.78976706]
[1764728534993,0.69636567,887.79,885.56,2.78976706]
[1764728535193,0.84123759,887.72,885.45,2.78976706]
[1764728535394,0.69636567,887.71,885.45,2.78976706]
[1764728535594,0.84123759,887.66,885.45,2.78976706]
[1764728535797,0.69636567,887.65,885.39,2.78976706]
[1764728535996,0.69636567,887.64,885.39,2.78976706]
[1764728536193,0.69636567,887.63,885.36,2.78976706]
[1764728536394,0.69636567,887.62,885.36,2.78976706]
[1764728536697,0.69636567,887.61,885.36,2.78976706]
[1764728536892,0.69636567,887.6,885.36,2.78976706]
[1764728537095,0.69636567,887.59,885.36,2.78976706]
[1764728537299,0.69636567,887.58,885.31,2.78976706]
[1764728537500,0.69636567,887.57,885.31,2.78976706]
[1764728537695,0.69636567,887.56,885.32,2.78976706]
[1764728537897,0.69636567,887.55,885.32,2.78976706]
[1764728538197,0.69636567,887.54,885.32,2.78976706]
[1764728538396,0.69636567,887.53,885.29,2.78976706]
[1764728538600,0.69636567,887.52,885.29,2.78976706]
[1764728538900,0.69636567,887.51,885.23,2.78976706]
[1764728539096,0.69636567,887.5,885.23,2.78976706]
[1764728539302,0.69636567,887.49,885.23,2.78976706]
[1764728539501,0.69636567,887.48,885.19,2.78976706]
[1764728539702,0.69636567,887.47,885.19,2.78976706]
[1764728539897,0.69636567,887.46,885.19,2.78976706]
[1764728540097,0.69636567,887.45,885.19,2.78976706]
[1764728540401,0.69636567,887.44,885.16,2.78976706]
[1764728540701,0.69636567,887.43,885.16,2.78976706]
[1764728540999,0.69636567,887.42,885.16,2.78976706]
[1764728541198,0.69636567,887.41,885.16,2.78976706]
[1764728541502,0.69636567,887.4,885.14,2.78976706]
[1764728541802,0.69636567,887.39,885.14,2.78976706]
[1764728542000,0.69636567,887.38,885.14,2.78976706]
[1764728542297,0.69636567,887.37,885.14,2.78976706]
[1764728542499,0.69636567,887.36,885.1,2.78976706]
[1764728542697,0.69636567,887.35,885.1,2.78976706]
[1764728542899,0.69636567,887.34,885.1,2.78976706]
[1764728543098,0.69636567,887.33,885.1,2.78976706]
[1764728543400,0.69636567,887.32,885.1,2.78976706]
[1764728543597,0.69636567,887.31,885.08,2.78976706]
[1764728543796,0.84123759,887.59,885.08,2.78976706]
[1764728544002,0.69525815,887.58,885.08,2.78976706]
[1764728544298,0.69525815,887.57,885.08,2.78976706]
[1764728544498,0.69525815,887.56,885.07,2.78976706]
[1764728544697,0.69525815,887.55,885.07,2.78976706]
[1764728544901,0.69525815,887.54,885.07,2.78976706]
[1764728545099,0.69525815,887.53,885.05,2.78976706]
[1764728545302,0.69525815,887.52,885.05,2.78976706]
[1764728545507,0.69525815,887.51,885.05,2.78976706]
[1764728545804,0.69525815,887.5,885.12,2.78976706]
[1764728546004,0.69525815,887.49,885.12,2.78976706]
[1764728546202,0.69525815,887.48,885.12,2.78976706]
[1764728546401,0.69525815,887.47,885.12,2.78976706]
[1764728546600,0.69525815,887.46,885.11,2.78976706]
[1764728546902,0.69525815,887.45,885.11,2.78976706]
[1764728547104,0.69525815,887.44,885.11,2.78976706]
[1764728547301,0.69525815,887.43,885.1,2.78976706]
[1764728547505,0.69525815,887.42,885.1,2.78976706]
[1764728547704,0.69525815,887.41,885.1,2.78976706]
[1764728547908,0.69525815,887.4,885.1,2.78976706]
[1764728548106,0.69525815,887.39,885.1,2.78976706]
[1764728548308,0.69525815,887.38,884.9,2.78976706]
[1764728548609,0.69525815,887.37,884.9,2.78976706]
[1764728548907,0.69525815,887.36,884.9,2.78976706]
[1764728549110,0.69525815,887.35,884.9,2.78976706]
[1764728549405,0.69525815,887.34,884.88,2.78976706]
[1764728549605,0.84123759,887.5,884.88,2.78976706]
[1764728549606,0.69525815,887.33,884.88,2.78976706]
[1764728549906,0.69525815,887.32,884.88,2.78976706]
[1764728550105,0.69525815,887.31,884.88,2.78976706]
[1764728550308,0.69525815,887.3,884.86,2.78976706]
[1764728550506,0.69525815,887.29,884.86,2.78976706]
[1764728550711,0.69525815,887.28,884.86,2.78976706]
[1764728550912,0.69525815,887.27,884.86,2.78976706]
[1764728551112,0.69525815,887.26,884.86,2.78976706]
[1764728551408,0.69525815,887.25,884.83,2.78976706]
[1764728551611,0.84123759,887.48,884.83,2.78976706]
[1764728551612,0.69525815,887.24,884.83,2.78976706]
[1764728551811,0.69525815,887.23,884.83,2.78976706]
[1764728552013,0.69525815,887.22,884.83,2.78976706]
[1764728552214,0.69525815,887.21,884.83,2.78976706]
[1764728552409,0.69525815,887.2,884.81,2.78976706]
[1764728552614,0.84123759,887.48,884.81,2.78976706]
[1764728552914,0.69411516,887.47,884.81,2.78976706]
[1764728553115,0.69411516,887.46,884.81,2.78976706]
[1764728553316,0.69411516,887.45,884.84,2.78976706]
[1764728553515,0.69411516,887.44,884.84,2.78976706]
[1764728553715,0.69411516,887.43,884.84,2.78976706]
[1764728553912,0.84123759,887.51,884.83,2.78976706]
[1764728553913,0.69411516,887.42,884.83,2.78976706]
[1764728554111,0.69411516,887.41,884.83,2.78976706]
[1764728554316,0.69411516,887.4,884.83,2.78976706]
[1764728554619,0.69411516,887.39,884.83,2.78976706]
[1764728554817,0.69411516,887.38,884.83,2.78976706]
[1764728555119,0.69411516,887.37,884.83,2.78976706]
[1764728555317,1.66808224,887.86,884.83,2.78976706]
[1764728555318,0.69411516,887.36,884.83,2.78976706]
[1764728555514,0.69411516,887.35,884.87,2.78976706]
[1764728555716,0.69411516,887.34,884.87,2.78976706]
[1764728555915,0.69411516,887.33,884.87,2.78976706]
[1764728556120,0.69411516,887.32,884.87,2.78976706]
[1764728556321,0.69411516,887.31,884.87,2.78976706]
[1764728556521,0.69411516,887.31,884.56,3.90004322]
[1764728556522,0.69411516,887.3,884.88,2.78976706]
[1764728556821,0.69411516,887.29,884.88,2.78976706]
[1764728557020,0.69411516,887.28,884.88,2.78976706]
[1764728557216,0.01138081,888.25,884.88,2.78976706]
[1764728557217,0.84123759,887.57,884.88,2.78976706]
[1764728557420,1.66808224,887.89,884.88,2.78976706]
[1764728557421,0.69398017,887.56,884.88,2.78976706]
[1764728557623,0.69398017,887.55,884.92,2.78976706]
[1764728557922,0.69398017,887.54,884.92,2.78976706]
[1764728558218,0.69398017,887.53,884.94,2.78976706]
[1764728558418,0.69398017,887.52,884.94,2.78976706]
[1764728558622,0.69398017,887.51,884.94,2.78976706]
[1764728558822,0.69398017,887.5,884.94,2.78976706]
[1764728559023,0.69398017,887.49,884.96,2.78976706]
[1764728559219,0.69398017,887.48,884.96,2.78976706]
[1764728559421,0.69398017,887.47,884.96,2.78976706]
[1764728559623,0.69398017,887.46,884.96,2.78976706]
[1764728559823,0.69398017,887.45,884.96,2.78976706]
[1764728560021,0.69398017,887.44,884.96,2.78976706]
[1764728560225,0.69398017,887.43,884.97,2.78976706]
[1764728560521,0.69398017,887.42,884.97,2.78976706]
[1764728560725,0.84123759,887.71,885.07,2.78976706]
[1764728561022,1.66808224,888.03,885.07,2.78976706]
[1764728561023,0.694179,887.7,885.07,2.78976706]
[1764728561226,0.694179,887.69,885.17,2.78976706]
[1764728561526,0.694179,887.68,885.17,2.78976706]
[1764728561725,0.6943028,887.67,885.17,2.78976706]
[1764728561922,0.6943028,887.66,885.26,2.78976706]
[1764728562122,0.6943028,887.65,885.26,2.78976706]
[1764728562325,0.6943028,887.64,885.31,2.78976706]
[1764728562625,0.6943028,887.63,885.31,2.78976706]
[1764728562825,0.6943028,887.62,885.31,2.78976706]
[1764728563122,0.83421851,887.93,885.31,2.78976706]
[1764728563327,0.83421851,887.93,885.39,2.78976706]
[1764728563722,1.52909241,887.92,885.39,2.78976706]
[1764728563922,0.6948739,887.91,885.38,2.78976706]
[1764728564227,0.6948739,887.9,885.38,2.78976706]
[1764728564427,0.6948739,887.89,885.43,2.78976706]
[1764728564623,0.6948739,887.88,885.43,2.78976706]
[1764728564926,0.6948739,887.87,885.42,2.78976706]
[1764728565127,0.6948739,887.86,885.42,2.78976706]
[1764728565326,0.83421851,887.76,885.42,2.78976706]
[1764728565627,0.83421851,887.76,884.61,5.57149031]
[1764728565628,0.83421851,887.76,885.29,2.78976706]
[1764728566226,1.52909241,887.75,885.29,2.78976706]
[1764728566429,0.6948739,887.74,885.33,2.78976706]
[1764728566628,0.6948739,887.73,885.33,2.78976706]
[1764728566829,0.6948739,887.72,885.33,2.78976706]
[1764728567028,0.6948739,887.71,885.33,2.78976706]
[1764728567225,0.6948739,887.7,885.33,2.78976706]
[1764728567430,0.6948739,887.69,885.37,2.78976706]
[1764728567629,0.6948739,887.68,885.37,2.78976706]